{"text_format":"1","workbook":"xlsx","n_sheets":4,"sheets":["Hidden sheet","Cover page","Summary","Data"],"not_rendered":{"charts":2,"images":1,"macros":1,"external_links":2,"defined_names":11,"comments":1,"pivot_tables":0},"unopened":[],"bounds":{"document_bytes":16777216,"sheet_cells":100000,"rows_first":2000,"rows_last":500,"rows_between":2000,"halvings":0,"cell_chars":16384,"cell_head_chars":4096},"cells_cut":0,"cells_raw":0,"read":"whole","date_system":"1900"}

{"sheet":"Hidden sheet","index":0,"n_rows":4,"n_cols":2,"rows_kept":4,"cut":false,"hidden":true,"merged":[]}
[]
["IPG title","radiation therapy for early Dupuytren's disease"]
["IPG title (lower case first letter)","radiation therapy for early Dupuytren's disease"]
["Publication year",2016]

{"sheet":"Cover page","index":1,"n_rows":0,"n_cols":0,"rows_kept":0,"cut":false,"hidden":false,"merged":[]}

{"sheet":"Summary","index":2,"n_rows":72,"n_cols":6,"rows_kept":72,"cut":false,"hidden":false,"merged":[[67,1,67,5],[71,1,71,5],[6,2,6,4],[0,1,0,5],[3,1,3,5],[4,1,4,5],[11,2,11,4],[17,2,17,4]]}
[null,{"$f":"\"Summary of data for \"&'Hidden sheet'!B2","v":"Summary of data for radiation therapy for early Dupuytren's disease"}]
[]
[]
[null,{"$f":"\"This tool helps clinicians using \"&'Hidden sheet'!B3&\" to review clinical outcomes.  Review data at appropriate intervals and change practice if the results suggest the need to do so.\"","v":"This tool helps clinicians using radiation therapy for early Dupuytren's disease to review clinical outcomes.  Review data at appropriate intervals and change practice if the results suggest the need to do so."}]
[null,"The tool contains a data collection sheet with drop down options and free text boxes.  A summary of the data is shown in the tables and graphs below."]
[]
[null,"Consent","Number",null,null,"%"]
[null,"A discussion has taken place about the  procedure's safety and efficacy",{"$f":"Data!C$206","v":0},"/",{"$f":"Data!C$208","v":0},{"$f":"Data!C$209","v":"%"}]
[null,"The patient has received written information explaining the uncertainties about the procedure's safety and efficacy",{"$f":"Data!D$206","v":0},"/",{"$f":"Data!D$208","v":0},{"$f":"Data!D$209","v":"%"}]
[null,"Written consent to treatment has been obtained",{"$f":"Data!E$206","v":0},"/",{"$f":"Data!E$208","v":0},{"$f":"Data!E$209","v":"%"}]
[]
[null,"Outcome measures of benefit","Number",null,null,"%"]
[null,{"$f":"Data!BB4","v":"Overall improvement or no change in total extension deficit at 2 years "},{"$f":"Data!BB206","v":0},"/",{"$f":"Data!BB208","v":0},{"$f":"Data!BB$209","v":"%"}]
[null,"Avoidance of surgery or other release procedure at 5 years",{"$f":"Data!BE206","v":0},"/",{"$f":"Data!BE208","v":0},{"$f":"Data!BE$209","v":"%"}]
[null,"Improved overall quality of life at 2 years",{"$f":"Data!BH206","v":0},"/",{"$f":"Data!BH208","v":0},{"$f":"Data!BH$209","v":"%"}]
[null,"Improved hand function at 2 years ",{"$f":"Data!BK206","v":0},"/",{"$f":"Data!BK208","v":0},{"$f":"Data!BK$209","v":"%"}]
[]
[null,"Adverse outcomes","Number",null,null,"%"]
[null,"Dry skin",{"$f":"Data!BM$206","v":0},"/",{"$f":"Data!BM$208","v":0},{"$f":"Data!BM$209","v":"%"}]
[null,"Desquamation",{"$f":"Data!BN$206","v":0},"/",{"$f":"Data!BN$208","v":0},{"$f":"Data!BN$209","v":"%"}]
[null,"Erythema",{"$f":"Data!BO$206","v":0},"/",{"$f":"Data!BO$208","v":0},{"$f":"Data!BO$209","v":"%"}]
[null,"Pain or tenderness",{"$f":"Data!BP$206","v":0},"/",{"$f":"Data!BP$208","v":0},{"$f":"Data!BP$209","v":"%"}]
[null,"Swelling",{"$f":"Data!BQ$206","v":0},"/",{"$f":"Data!BQ$208","v":0},{"$f":"Data!BQ$209","v":"%"}]
[]
[null,"Total number of patients:",{"$f":"COUNTA(Data!F6:F205)","v":0}]
[]
[]
[]
[]
[]
[]
[]
[]
[]
[]
[]
[]
[]
[]
[]
[]
[]
[]
[]
[]
[]
[]
[]
[]
[]
[]
[]
[]
[]
[]
[]
[]
[]
[]
[]
[]
[]
[]
[]
[]
[]
[]
[null,"To ensure that any valuable insight about the consequences of this procedure is shared among clinicians, serious or previously unrecognised patient safety incidents should be documented and information submitted to the National Reporting and Learning System (NRLS), operated by the National Patient Safety Agency.  "]
[]
[null,"National Institute for Health and Care Excellence"]
[null,"Level 1A, City Tower, Piccadilly Plaza, Manchester M1 4BD www.nice.org.uk"]
[null,"© National Institute for Health and Care Excellence, 2016. All rights reserved. This material may be freely reproduced for educational and not-for-profit purposes. No reproduction by or for commercial organisations, or for commercial purposes, is allowed without the express written permission of NICE."]

{"sheet":"Data","index":3,"n_rows":212,"n_cols":71,"rows_kept":212,"cut":false,"hidden":false,"merged":[[2,23,2,37],[2,38,2,52],[3,1,4,1],[3,19,4,19],[3,5,4,5],[3,2,4,2],[1,5,1,22],[3,56,4,56],[3,23,3,25],[3,4,4,4],[3,3,4,3],[3,54,4,54],[3,55,4,55],[3,50,3,52],[3,7,4,7],[3,8,4,8],[3,29,3,31],[3,32,3,34],[3,9,3,13],[3,14,3,18],[3,26,3,28],[3,20,4,20],[1,64,1,70],[3,68,4,68],[3,70,4,70],[3,69,4,69],[3,66,4,66],[1,23,1,63],[3,67,4,67],[3,21,4,21],[3,53,4,53],[3,60,3,62],[3,38,3,40],[3,44,3,46],[3,47,3,49],[2,64,2,70],[3,63,4,63],[3,57,3,59],[3,65,4,65],[3,64,4,64],[3,22,4,22],[3,41,3,43],[3,35,3,37]]}
[null,{"$f":"\"Data collection tool for \"&'Hidden sheet'!B2","v":"Data collection tool for radiation therapy for early Dupuytren's disease"}]
[null,null,"Consent",null,null,"Baseline data",null,null,null,null,null,null,null,null,null,null,null,null,null,null,null,null,null,"Outcome measures of benefit",null,null,null,null,null,null,null,null,null,null,null,null,null,null,null,null,null,null,null,null,null,null,null,null,null,null,null,null,null,null,null,null,null,null,null,null,null,null,null,null,"Adverse outcomes"]
[null,null,null,null,null,null,null,null,null,null,null,null,null,null,null,null,null,null,null,null,null,null,null,"Left hand",null,null,null,null,null,null,null,null,null,null,null,null,null,null,"Right hand",null,null,null,null,null,null,null,null,null,null,null,null,null,null,null,null,null,null,null,null,null,null,null,null,null,"Assessment date to be decided locally, suggested medium-term assessment is 6 months - 2 years"]
[null,"Patient",{"$f":"Summary!B8","v":"A discussion has taken place about the  procedure's safety and efficacy"},{"$f":"Summary!B9","v":"The patient has received written information explaining the uncertainties about the procedure's safety and efficacy"},{"$f":"Summary!B10","v":"Written consent to treatment has been obtained"},"Date of procedure",null,"Hand(s) treated ","Dominant hand","Left hand",null,null,null,null,"Right hand",null,null,null,null,"Total number of nodules/cords","Quality of Life score [state test used] (for example, EQ-5D) ","Hand function test [state test used] for example, SHAP or URAM","Additional comments (for example, number of treatments and Gy used)",{"$f":"Data!J5","v":"Total extension deficit (total of MCP, PIP and DIP contracture) in thumb (°)"},null,null,{"$f":"Data!K5","v":"Total extension deficit (total of MCP, PIP and DIP contracture) in index finger (°)"},null,null,{"$f":"Data!L5","v":"Total extension deficit (total of MCP, PIP and DIP contracture) in middle finger (°)"},null,null,{"$f":"Data!M5","v":"Total extension deficit (total of MCP, PIP and DIP contracture) in ring finger (°)"},null,null,{"$f":"Data!N5","v":"Total extension deficit (total of MCP, PIP and DIP contracture) in little finger (°)"},null,null,{"$f":"Data!O5","v":"Total extension deficit (total of MCP, PIP and DIP contracture) in thumb (°)"},null,null,{"$f":"Data!P5","v":"Total extension deficit (total of MCP, PIP and DIP contracture) in index finger (°)"},null,null,{"$f":"Data!Q5","v":"Total extension deficit (total of MCP, PIP and DIP contracture) in middle finger (°)"},null,null,{"$f":"Data!R5","v":"Total extension deficit (total of MCP, PIP and DIP contracture) in ring finger (°)"},null,null,{"$f":"Data!S5","v":"Total extension deficit (total of MCP, PIP and DIP contracture) in little finger (°)"},null,null,"Overall improvement or no change in total extension deficit at 2 years ","Total number of nodules/cords at 2 years","Total number of nodules/cords at 5 years",{"$f":"Summary!B14","v":"Avoidance of surgery or other release procedure at 5 years"},"Quality of life at 2 years",null,null,"Hand function test at 2 years [state test used] for example, SHAP or URAM",null,null,"Additional comments, for example, details of any additional digits that have become affected by Dupuytren's since treatment",{"$f":"Summary!$B19","v":"Dry skin"},{"$f":"Summary!$B20","v":"Desquamation"},{"$f":"Summary!$B21","v":"Erythema"},{"$f":"Summary!$B22","v":"Pain or tenderness"},{"$f":"Summary!$B23","v":"Swelling"},"Other adverse outcome","Additional comments \n(including assessment date of any adverse outcomes recorded) "]
[null,null,null,null,null,null,"Indication for procedure",null,null,"Total extension deficit (total of MCP, PIP and DIP contracture) in thumb (°)","Total extension deficit (total of MCP, PIP and DIP contracture) in index finger (°)","Total extension deficit (total of MCP, PIP and DIP contracture) in middle finger (°)","Total extension deficit (total of MCP, PIP and DIP contracture) in ring finger (°)","Total extension deficit (total of MCP, PIP and DIP contracture) in little finger (°)","Total extension deficit (total of MCP, PIP and DIP contracture) in thumb (°)","Total extension deficit (total of MCP, PIP and DIP contracture) in index finger (°)","Total extension deficit (total of MCP, PIP and DIP contracture) in middle finger (°)","Total extension deficit (total of MCP, PIP and DIP contracture) in ring finger (°)","Total extension deficit (total of MCP, PIP and DIP contracture) in little finger (°)",null,null,null,null,"Date","Score","Same or improvement in score from baseline?","Date","Score","Same or improvement in score from baseline?","Date","Score","Same or improvement in score from baseline?","Date","Score","Same or improvement in score from baseline?","Date","Score","Same or improvement in score from baseline?","Date","Score","Same or improvement in score from baseline?","Date","Score","Same or improvement in score from baseline?","Date","Score","Same or improvement in score from baseline?","Date","Score","Same or improvement in score from baseline?","Date","Score","Same or improvement in score from baseline?",null,null,null,null,"Date","Score","Improvement?","Date","Score","Improvement?"]
[null,1]
[null,2]
[null,3]
[null,4]
[null,5]
[null,6]
[null,7]
[null,8]
[null,9]
[null,10]
[null,11]
[null,12]
[null,13]
[null,14]
[null,15]
[null,16]
[null,17]
[null,18]
[null,19]
[null,20]
[null,21]
[null,22]
[null,23]
[null,24]
[null,25]
[null,26]
[null,27]
[null,28]
[null,29]
[null,30]
[null,31]
[null,32]
[null,33]
[null,34]
[null,35]
[null,36]
[null,37]
[null,38]
[null,39]
[null,40]
[null,41]
[null,42]
[null,43]
[null,44]
[null,45]
[null,46]
[null,47]
[null,48]
[null,49]
[null,50]
[null,51]
[null,52]
[null,53]
[null,54]
[null,55]
[null,56]
[null,57]
[null,58]
[null,59]
[null,60]
[null,61]
[null,62]
[null,63]
[null,64]
[null,65]
[null,66]
[null,67]
[null,68]
[null,69]
[null,70]
[null,71]
[null,72]
[null,73]
[null,74]
[null,75]
[null,76]
[null,77]
[null,78]
[null,79]
[null,80]
[null,81]
[null,82]
[null,83]
[null,84]
[null,85]
[null,86]
[null,87]
[null,88]
[null,89]
[null,90]
[null,91]
[null,92]
[null,93]
[null,94]
[null,95]
[null,96]
[null,97]
[null,98]
[null,99]
[null,100]
[null,101]
[null,102]
[null,103]
[null,104]
[null,105]
[null,106]
[null,107]
[null,108]
[null,109]
[null,110]
[null,111]
[null,112]
[null,113]
[null,114]
[null,115]
[null,116]
[null,117]
[null,118]
[null,119]
[null,120]
[null,121]
[null,122]
[null,123]
[null,124]
[null,125]
[null,126]
[null,127]
[null,128]
[null,129]
[null,130]
[null,131]
[null,132]
[null,133]
[null,134]
[null,135]
[null,136]
[null,137]
[null,138]
[null,139]
[null,140]
[null,141]
[null,142]
[null,143]
[null,144]
[null,145]
[null,146]
[null,147]
[null,148]
[null,149]
[null,150]
[null,151]
[null,152]
[null,153]
[null,154]
[null,155]
[null,156]
[null,157]
[null,158]
[null,159]
[null,160]
[null,161]
[null,162]
[null,163]
[null,164]
[null,165]
[null,166]
[null,167]
[null,168]
[null,169]
[null,170]
[null,171]
[null,172]
[null,173]
[null,174]
[null,175]
[null,176]
[null,177]
[null,178]
[null,179]
[null,180]
[null,181]
[null,182]
[null,183]
[null,184]
[null,185]
[null,186]
[null,187]
[null,188]
[null,189]
[null,190]
[null,191]
[null,192]
[null,193]
[null,194]
[null,195]
[null,196]
[null,197]
[null,198]
[null,199]
[null,200]
[null,"Yes",{"$f":"COUNTIF(C6:C205,\"Yes\")","v":0},{"$f":"COUNTIF(D6:D205,\"Yes\")","v":0},{"$f":"COUNTIF(E6:E205,\"Yes\")","v":0},null,null,null,null,null,null,null,null,null,null,null,null,null,null,null,null,null,null,null,null,{"$f":"COUNTIF(Z6:Z205,\"Yes\")","v":0},{"$f":"COUNTIF(AA6:AA205,\"Yes\")","v":0},0,0,0,0,0,0,0,0,0,0,0,0,0,{"$f":"COUNTIF(AO6:AO205,\"Yes\")","v":0},{"$f":"COUNTIF(AP6:AP205,\"Yes\")","v":0},{"$f":"COUNTIF(AQ6:AQ205,\"Yes\")","v":0},{"$f":"COUNTIF(AR6:AR205,\"Yes\")","v":0},{"$f":"COUNTIF(AS6:AS205,\"Yes\")","v":0},{"$f":"COUNTIF(AT6:AT205,\"Yes\")","v":0},{"$f":"COUNTIF(AU6:AU205,\"Yes\")","v":0},{"$f":"COUNTIF(AV6:AV205,\"Yes\")","v":0},{"$f":"COUNTIF(AW6:AW205,\"Yes\")","v":0},{"$f":"COUNTIF(AX6:AX205,\"Yes\")","v":0},{"$f":"COUNTIF(AY6:AY205,\"Yes\")","v":0},{"$f":"COUNTIF(AZ6:AZ205,\"Yes\")","v":0},{"$f":"COUNTIF(BA6:BA205,\"Yes\")","v":0},0,{"$f":"COUNTIF(BC6:BC205,\"Yes\")","v":0},{"$f":"COUNTIF(BD6:BD205,\"Yes\")","v":0},{"$f":"COUNTIF(BE6:BE205,\"Yes\")","v":0},{"$f":"COUNTIF(BF6:BF205,\"Yes\")","v":0},{"$f":"COUNTIF(BG6:BG205,\"Yes\")","v":0},{"$f":"COUNTIF(BH6:BH205,\"Yes\")","v":0},{"$f":"COUNTIF(BI6:BI205,\"Yes\")","v":0},{"$f":"COUNTIF(BJ6:BJ205,\"Yes\")","v":0},{"$f":"COUNTIF(BK6:BK205,\"Yes\")","v":0},{"$f":"COUNTIF(BL6:BL205,\"Yes\")","v":0},{"$f":"COUNTIF(BM6:BM205,\"Yes\")","v":0},{"$f":"COUNTIF(BN6:BN205,\"Yes\")","v":0},{"$f":"COUNTIF(BO6:BO205,\"Yes\")","v":0},0,{"$f":"COUNTIF(BQ6:BQ205,\"Yes\")","v":0},{"$f":"COUNTIF(BR6:BR205,\"Yes\")","v":0}]
[null,"No",{"$f":"COUNTIF(C6:C205,\"No\")","v":0},{"$f":"COUNTIF(D6:D205,\"No\")","v":0},{"$f":"COUNTIF(E6:E205,\"No\")","v":0},null,null,null,null,null,null,null,null,null,null,null,null,null,null,null,null,null,null,null,null,{"$f":"COUNTIF(Z6:Z205,\"No\")","v":0},{"$f":"COUNTIF(AA6:AA205,\"No\")","v":0},0,0,0,0,0,0,0,0,0,0,0,0,0,{"$f":"COUNTIF(AO6:AO205,\"No\")","v":0},0,0,0,0,0,0,0,0,0,0,0,0,0,0,0,0,0,0,0,0,0,0,0,0,0,0,0,0,0]
[null,"Total",{"$f":"SUM(C206:C207)","v":0},{"$f":"SUM(D206:D207)","v":0},{"$f":"SUM(E206:E207)","v":0},null,null,null,null,null,null,null,null,null,null,null,null,null,null,null,null,null,null,null,null,{"$f":"SUM(Z206:Z207)","v":0},{"$f":"SUM(AA206:AA207)","v":0},0,0,0,0,0,0,0,0,0,0,0,0,0,{"$f":"SUM(AO206:AO207)","v":0},{"$f":"SUM(AP206:AP207)","v":0},{"$f":"SUM(AQ206:AQ207)","v":0},{"$f":"SUM(AR206:AR207)","v":0},{"$f":"SUM(AS206:AS207)","v":0},{"$f":"SUM(AT206:AT207)","v":0},{"$f":"SUM(AU206:AU207)","v":0},{"$f":"SUM(AV206:AV207)","v":0},{"$f":"SUM(AW206:AW207)","v":0},{"$f":"SUM(AX206:AX207)","v":0},{"$f":"SUM(AY206:AY207)","v":0},{"$f":"SUM(AZ206:AZ207)","v":0},{"$f":"SUM(BA206:BA207)","v":0},0,{"$f":"SUM(BC206:BC207)","v":0},{"$f":"SUM(BD206:BD207)","v":0},{"$f":"SUM(BE206:BE207)","v":0},{"$f":"SUM(BF206:BF207)","v":0},{"$f":"SUM(BG206:BG207)","v":0},{"$f":"SUM(BH206:BH207)","v":0},{"$f":"SUM(BI206:BI207)","v":0},{"$f":"SUM(BJ206:BJ207)","v":0},{"$f":"SUM(BK206:BK207)","v":0},{"$f":"SUM(BL206:BL207)","v":0},{"$f":"SUM(BM206:BM207)","v":0},{"$f":"SUM(BN206:BN207)","v":0},{"$f":"SUM(BO206:BO207)","v":0},0,{"$f":"SUM(BQ206:BQ207)","v":0},{"$f":"SUM(BR206:BR207)","v":0}]
[null,"% yes",{"$f":"IF(ISERR(C206/C208),\"%\",C206/C208)","v":"%"},{"$f":"IF(ISERR(D206/D208),\"%\",D206/D208)","v":"%"},{"$f":"IF(ISERR(E206/E208),\"%\",E206/E208)","v":"%"},null,null,null,null,null,null,null,null,null,null,null,null,null,null,null,null,null,null,null,null,{"$f":"IF(ISERR(Z206/Z208),\"%\",Z206/Z208)","v":"%"},{"$f":"IF(ISERR(AA206/AA208),\"%\",AA206/AA208)","v":"%"},"%","%","%","%","%","%","%","%","%","%","%","%","%",{"$f":"IF(ISERR(AO206/AO208),\"%\",AO206/AO208)","v":"%"},{"$f":"IF(ISERR(AP206/AP208),\"%\",AP206/AP208)","v":"%"},{"$f":"IF(ISERR(AQ206/AQ208),\"%\",AQ206/AQ208)","v":"%"},{"$f":"IF(ISERR(AR206/AR208),\"%\",AR206/AR208)","v":"%"},{"$f":"IF(ISERR(AS206/AS208),\"%\",AS206/AS208)","v":"%"},{"$f":"IF(ISERR(AT206/AT208),\"%\",AT206/AT208)","v":"%"},{"$f":"IF(ISERR(AU206/AU208),\"%\",AU206/AU208)","v":"%"},{"$f":"IF(ISERR(AV206/AV208),\"%\",AV206/AV208)","v":"%"},{"$f":"IF(ISERR(AW206/AW208),\"%\",AW206/AW208)","v":"%"},{"$f":"IF(ISERR(AX206/AX208),\"%\",AX206/AX208)","v":"%"},{"$f":"IF(ISERR(AY206/AY208),\"%\",AY206/AY208)","v":"%"},{"$f":"IF(ISERR(AZ206/AZ208),\"%\",AZ206/AZ208)","v":"%"},{"$f":"IF(ISERR(BA206/BA208),\"%\",BA206/BA208)","v":"%"},"%",{"$f":"IF(ISERR(BC206/BC208),\"%\",BC206/BC208)","v":"%"},{"$f":"IF(ISERR(BD206/BD208),\"%\",BD206/BD208)","v":"%"},{"$f":"IF(ISERR(BE206/BE208),\"%\",BE206/BE208)","v":"%"},{"$f":"IF(ISERR(BF206/BF208),\"%\",BF206/BF208)","v":"%"},{"$f":"IF(ISERR(BG206/BG208),\"%\",BG206/BG208)","v":"%"},{"$f":"IF(ISERR(BH206/BH208),\"%\",BH206/BH208)","v":"%"},{"$f":"IF(ISERR(BI206/BI208),\"%\",BI206/BI208)","v":"%"},{"$f":"IF(ISERR(BJ206/BJ208),\"%\",BJ206/BJ208)","v":"%"},{"$f":"IF(ISERR(BK206/BK208),\"%\",BK206/BK208)","v":"%"},{"$f":"IF(ISERR(BL206/BL208),\"%\",BL206/BL208)","v":"%"},{"$f":"IF(ISERR(BM206/BM208),\"%\",BM206/BM208)","v":"%"},{"$f":"IF(ISERR(BN206/BN208),\"%\",BN206/BN208)","v":"%"},{"$f":"IF(ISERR(BO206/BO208),\"%\",BO206/BO208)","v":"%"},"%",{"$f":"IF(ISERR(BQ206/BQ208),\"%\",BQ206/BQ208)","v":"%"},{"$f":"IF(ISERR(BR206/BR208),\"%\",BR206/BR208)","v":"%"}]
[]
[]
[null,"Date:",null,null,null,{"$f":"TODAY()","v":"2016-12-14"}]